bitfinex/quotes_ETHUSD_20250725
["timestamp","ask_amount","ask_price","bid_price","bid_amount"]
[1753462284658,0.1376,3641.5,3641.3,0.7868]
[1753462284846,3.1376,3641.5,3641.3,0.7868]
[1753462285054,0.1376,3641.5,3641.4,0.9377]
[1753462285253,0.1376,3641.5,3641.0,0.6161]
[1753462285452,0.1376,3641.5,3640.7,0.1376]
[1753462285453,0.1376,3641.3,3640.7,0.1376]
[1753462285763,2.74658269,3640.9,3640.6,0.4785]
[1753462285959,2.74658269,3640.9,3640.5,0.1376]
[1753462286261,2.74659888,3640.9,3640.6,0.4785]
[1753462286458,2.88411904,3641.0,3640.7,0.4785]
[1753462286661,2.88411904,3641.0,3640.8,0.4785]
[1753462286662,0.1376,3641.0,3640.8,0.4785]
[1753462286880,0.1376,3641.0,3640.9,0.4785]
[1753462287031,2.74628669,3641.3,3640.9,0.9377]
[1753462287254,2.74628669,3641.3,3641.0,0.9377]
[1753462287255,2.88388669,3641.3,3641.0,0.9377]
[1753462287501,2.74646725,3641.1,3640.7,0.6161]
[1753462287908,3.1376,3641.3,3640.8,0.4785]
[1753462288188,2.7471018,3640.2,3640.0,0.051]
[1753462288388,2.74717727,3640.1,3640.0,0.051]
[1753462288592,2.88477727,3640.1,3640.0,0.051]
[1753462288791,6.32167727,3640.1,3640.0,0.051]
[1753462288988,7.65945518,3640.1,3640.0,0.051]
[1753462289189,7.47596433,3640.1,3640.0,0.051]
[1753462289490,7.47587183,3640.1,3640.0,0.051]
[1753462291094,6.14009392,3640.1,3640.0,0.051]
[1753462291395,5.88477727,3640.1,3640.0,0.5295]
[1753462291572,5.88477727,3640.1,3640.0,0.051]
[1753462293901,0.1376,3640.1,3640.0,0.9887]
[1753462294213,0.1376,3640.5,3640.0,5.06006712]
[1753462294411,0.35384416,3640.5,3640.1,0.9377]
[1753462294574,0.1376,3640.5,3640.0,1.37511679]
[1753462294782,0.1376,3640.5,3640.2,0.9377]
[1753462294981,0.1376,3640.5,3640.0,1.0015]
[1753462294982,4.289,3640.4,3640.0,0.8639]
[1753462295183,0.1376,3640.2,3640.1,0.4785]
[1753462295384,7.17356711,3640.4,3640.1,0.9377]
[1753462295597,7.17356711,3640.4,3640.0,0.051]
[1753462295598,2.74717727,3640.1,3640.0,0.051]
[1753462295788,2.88477727,3640.1,3640.0,0.051]
[1753462295990,3.902155,3640.1,3640.0,0.051]
[1753462296308,11.508555,3640.1,3640.0,0.051]
[1753462296515,11.054555,3640.1,3640.0,0.051]
[1753462296886,10.03717727,3640.1,3640.0,0.051]
[1753462297310,0.21604719,3640.5,3640.0,1.7606]
[1753462297311,4.29,3640.4,3640.0,1.7606]
[1753462297487,2.74669952,3640.8,3640.1,0.8967]
[1753462297818,4.50891394,3640.8,3640.2,0.4522]
[1753462297990,0.25512231,3640.7,3640.0,0.8639]
[1753462298186,2.7470497,3640.3,3640.0,0.8639]
[1753462298395,2.74711467,3640.2,3640.0,1.3161]
[1753462298715,2.74717727,3640.1,3640.0,0.051]
[1753462299010,7.03717727,3640.1,3640.0,0.051]
[1753462300312,10.49117727,3640.1,3640.0,0.051]
[1753462300706,11.68617727,3640.1,3640.0,0.051]
[1753462300908,13.19987527,3640.1,3640.0,0.051]
[1753462301434,11.55087527,3640.1,3640.0,0.051]
[1753462301583,1.2575,3644.4,3642.1,3.5349687]
[1753462301788,0.21567563,3643.3,3642.1,1.686]
[1753462301982,0.11003,3643.1,3642.1,4.47812908]
[1753462302220,0.11003,3643.1,3642.1,3.98339658]
[1753462302440,0.67052897,3643.3,3642.1,1.44012498]
[1753462302642,1.07883227,3643.3,3642.4,2.74544256]
[1753462302949,0.67052897,3643.3,3642.3,2.74544422]
[1753462303111,0.67052897,3643.3,3642.4,2.74544256]
[1753462303300,0.21652897,3643.3,3642.4,2.74544256]
[1753462303495,3.40832745,3643.4,3642.4,2.74544256]
[1753462303697,3.40832745,3643.4,3642.4,0.4522]
[1753462303698,0.40832745,3643.4,3642.4,0.4522]
[1753462303915,3.0,3643.3,3642.4,3.19764256]
[1753462304115,0.454,3642.9,3641.8,0.4522]
[1753462304325,0.454,3642.9,3642.2,0.4522]
[1753462304742,0.454,3642.9,3641.8,0.4522]
[1753462305048,3.0,3642.8,3641.1,0.20344484]
[1753462305207,3.0,3642.9,3642.3,2.74548997]
[1753462305541,3.0,3642.9,3642.0,0.4522]
[1753462305725,4.399,3643.0,3642.4,2.74544256]
[1753462305929,4.399,3643.0,3642.3,2.74550214]
[1753462306142,4.399,3643.0,3642.2,0.4522]
[1753462306311,0.1376,3642.6,3642.2,0.4522]
[1753462306511,0.1376,3642.6,3642.1,3.6636472]
[1753462306837,0.1376,3642.6,3642.2,0.4522]
[1753462307607,0.1376,3642.6,3641.8,0.4522]
[1753462307608,0.456,3642.5,3641.8,0.4522]
[1753462307912,0.1376,3642.4,3641.9,0.39307397]
[1753462308112,0.1376,3642.4,3642.0,0.25547397]
[1753462308339,0.1376,3642.4,3641.9,0.1376]
[1753462308545,0.1376,3642.4,3642.0,0.70759504]
[1753462308719,0.1376,3642.4,3642.1,0.25539504]
[1753462308920,0.1376,3642.4,3642.0,0.4522]
[1753462309248,0.002,3642.5,3641.7,0.7804]
[1753462309459,0.454,3642.3,3641.8,0.25531809]
[1753462309606,0.1376,3641.9,3641.6,0.4522]
[1753462309817,0.1376,3641.9,3641.7,0.25533813]
[1753462310054,0.1376,3641.9,3641.8,0.25533813]
[1753462310816,0.1376,3641.9,3641.8,0.70753813]
[1753462311614,0.002,3642.5,3641.8,1.15203813]
[1753462311857,0.1376,3642.1,3642.0,2.74574409]
[1753462312061,0.1376,3642.1,3642.0,0.25533813]
[1753462312258,0.1376,3642.1,3642.0,0.70753813]
[1753462312636,0.1376,3642.1,3642.0,0.25533813]
[1753462312637,2.8832687,3642.1,3642.0,0.25533813]
[1753462313148,2.8832687,3642.1,3642.0,0.25518825]
[1753462313323,2.74574804,3642.0,3641.6,0.4522]
[1753462313519,0.1376,3641.9,3641.7,0.25514308]
[1753462313732,0.1376,3641.9,3641.8,0.25514308]
[1753462314521,0.1376,3641.9,3641.8,0.70734308]
[1753462316244,3.0,3642.4,3641.8,3.89773796]
[1753462316426,0.1376,3642.3,3641.9,0.25500679]
[1753462316627,2.88317442,3642.3,3642.0,0.4522]
[1753462316936,2.88317442,3642.3,3641.7,0.1376]
[1753462316937,2.74564768,3642.2,3641.7,0.1376]
[1753462317137,0.84612382,3642.3,3641.3,7.13626813]
[1753462317138,1.2414,3642.3,3641.8,0.25501593]
[1753462317359,0.1376,3641.7,3641.1,0.4522]
[1753462317562,2.74607214,3641.6,3641.3,0.25501204]
[1753462317881,0.1376,3641.4,3640.9,0.1376]
[1753462318099,0.1376,3641.4,3641.0,0.25501637]
[1753462318393,0.1376,3641.4,3641.1,0.70721637]
[1753462318687,0.1376,3641.4,3641.2,0.25501637]
[1753462318986,0.1376,3641.4,3641.3,0.25501637]
[1753462320584,6.031,3642.2,3641.3,1.15171637]
[1753462320585,3.0,3642.2,3641.3,1.15171637]
[1753462320783,6.35295178,3642.6,3641.7,2.74597028]
[1753462320784,0.1376,3641.8,3641.7,2.74597028]
[1753462320957,0.4985,3642.8,3641.7,2.74597028]
[1753462320958,0.1396,3642.5,3642.2,2.74553144]
[1753462321165,0.002,3642.5,3642.4,2.74544256]
[1753462321372,0.002,3642.5,3642.3,0.8186]
[1753462321687,0.1376,3642.3,3641.6,0.5898]
[1753462321892,2.8831301,3642.3,3641.7,0.25513183]
[1753462322077,3.12936113,3642.2,3641.8,0.25513107]
[1753462322254,0.83776301,3642.2,3641.6,3.33583154]
[1753462322455,0.83776301,3642.2,3641.7,0.25521241]
[1753462322647,2.74567138,3642.1,3641.6,0.5898]
[1753462322853,2.74579878,3642.0,3641.7,0.25520556]
[1753462323172,3.1294095,3642.2,3641.7,0.25520556]
[1753462323173,0.1376,3641.9,3641.7,0.25520556]
[1753462323346,0.1376,3641.9,3641.5,0.8186]
[1753462323550,0.1376,3642.3,3641.8,0.4522]
[1753462323774,0.1376,3642.3,3641.9,0.4522]
[1753462324394,0.1376,3642.3,3642.0,0.4522]
[1753462324693,0.1376,3642.3,3642.1,0.4522]
[1753462325107,0.1376,3642.3,3642.0,0.4445]
[1753462325429,2.74581948,3641.9,3641.8,0.1376]
[1753462325702,0.86618195,3641.9,3641.2,0.1376]
[1753462325874,2.88362271,3641.7,3641.2,0.1376]
[1753462326074,2.74604821,3641.6,3641.2,0.1376]
[1753462326299,2.74604821,3641.6,3641.2,0.5997]
[1753462326606,2.74604821,3641.6,3641.1,0.764]
[1753462326607,2.74609719,3641.6,3641.1,0.764]
[1753462326772,0.1376,3641.5,3641.1,1.2261]
[1753462326971,3.60189134,3641.5,3640.9,0.001]
[1753462327199,2.74649821,3641.0,3640.9,0.1386]
[1753462327411,2.88409821,3641.0,3640.9,0.001]
[1753462327632,0.1376,3641.0,3640.9,0.001]
[1753462327784,2.88409821,3641.0,3640.9,0.001]
[1753462328187,3.74190908,3641.0,3640.9,0.001]
[1753462328598,3.31210908,3641.0,3640.9,0.001]
[1753462329224,3.74190908,3641.0,3640.9,0.001]
[1753462329589,5.85180908,3641.0,3640.9,0.001]
[1753462329924,9.61020908,3641.0,3640.9,0.001]
[1753462330120,10.16020908,3641.0,3640.9,1e-08]
[1753462330616,8.51120908,3641.0,3640.9,1e-08]
[1753462332740,12.87820908,3641.0,3640.9,1e-08]
[1753462334184,8.86730908,3641.0,3640.9,1e-08]
[1753462334388,7.24809821,3641.0,3640.9,1e-08]
[1753462334829,10.24809821,3641.0,3640.9,1e-08]
[1753462336623,5.88409821,3641.0,3640.9,1e-08]
[1753462336792,4.362,3641.0,3640.9,0.92460001]
[1753462337369,2.74649821,3641.0,3640.9,0.92460001]
[1753462337521,2.74649821,3641.0,3640.9,0.46210001]
[1753462337916,7.10844483,3641.1,3640.9,0.46210001]
[1753462338216,2.74649821,3641.0,3640.9,0.46210001]
[1753462338420,11.10774324,3641.0,3640.9,1e-08]
[1753462338720,11.24534324,3641.0,3640.9,1e-08]
[1753462338915,10.24609821,3641.0,3640.9,0.46210001]
[1753462339121,4.362,3641.0,3640.9,0.92460001]
[1753462339328,2.74648687,3641.1,3640.9,0.92460001]
[1753462339533,2.74649821,3641.0,3640.9,0.46250001]
[1753462340041,2.74649821,3641.0,3640.9,1e-08]
[1753462340042,2.88409821,3641.0,3640.9,1e-08]
[1753462341516,7.24509821,3641.0,3640.9,1e-08]
[1753462341721,11.67404405,3641.0,3640.9,1e-08]
[1753462342303,13.78394405,3641.0,3640.9,1e-08]
[1753462342572,14.33394405,3641.0,3640.9,1e-08]
[1753462343123,11.24424405,3641.0,3640.9,1e-08]
[1753462343663,11.67404405,3641.0,3640.9,1e-08]
[1753462344235,14.33394405,3641.0,3640.9,1e-08]
[1753462344751,14.33594405,3641.0,3640.9,1e-08]
[1753462345172,15.13774405,3641.0,3640.9,1e-08]
[1753462345322,15.29130324,3641.0,3640.9,1e-08]
[1753462345522,14.83040324,3641.0,3640.9,1e-08]
[1753462345966,15.29130324,3641.0,3640.9,1e-08]
[1753462348142,14.83040324,3641.0,3640.9,1e-08]
[1753462348851,15.49377745,3641.0,3640.9,1e-08]
[1753462350579,20.19772923,3641.0,3640.9,1e-08]
[1753462350932,20.04417004,3641.0,3640.9,1e-08]
[1753462351128,20.19749967,3641.0,3640.9,1e-08]
[1753462351327,5.7314018,3640.2,3640.1,1e-08]
[1753462351562,18.92005323,3640.2,3640.1,1e-08]
[1753462351828,19.34985323,3640.2,3640.1,1e-08]
[1753462352964,2.74755467,3639.6,3639.5,0.001]
[1753462353287,10.09255467,3639.6,3639.5,0.001]
[1753462353436,10.09255467,3639.6,3639.5,0.4631]
[1753462353631,12.75245703,3639.6,3639.2,0.001]
[1753462353936,5.74763016,3639.5,3639.2,0.001]
[1753462354135,10.08963016,3639.5,3639.3,0.8096]
[1753462354544,10.08963016,3639.5,3639.4,0.9256]
[1753462354962,0.14357591,3640.0,3639.4,0.9256]
[1753462354963,0.14357591,3640.0,3639.4,1.7352]
[1753462355274,0.8085,3641.1,3639.6,3.55714147]
[1753462355275,2.74716394,3640.2,3639.6,3.55714147]
[1753462355475,7.08999173,3640.4,3639.8,0.8096]
[1753462355476,4.344,3640.4,3639.8,0.8096]
[1753462355862,4.344,3640.4,3639.9,3.67190627]
[1753462356042,4.344,3640.4,3640.0,2.74725135]
[1753462356572,4.344,3640.4,3640.2,0.7501]
[1753462356776,7.09101627,3640.4,3640.3,0.9362]
[1753462356974,2.74701627,3640.4,3640.3,0.9362]
[1753462357682,2.74701627,3640.4,3640.3,0.4968]
[1753462357894,2.74688242,3640.5,3640.3,0.4968]
[1753462358197,2.74688242,3640.5,3640.3,0.9362]
[1753462358395,2.74695088,3640.4,3640.3,0.4968]
[1753462358605,2.74695088,3640.4,3640.2,0.7501]
[1753462358794,2.74702634,3640.3,3640.2,0.7501]
[1753462359151,2.74702634,3640.3,3640.0,0.4968]
[1753462359365,10.08812489,3640.2,3640.1,0.4968]
[1753462362156,2.74717727,3640.1,3639.5,0.7614]
[1753462362439,2.74763016,3639.5,3639.4,0.4978]
[1753462362799,2.74757851,3639.6,3639.4,0.4978]
[1753462363046,3.0,3640.6,3639.4,0.9372]
[1753462363327,2.74733402,3639.9,3639.5,1.7659]
[1753462363532,7.08341721,3639.8,3639.6,0.9362]
[1753462363691,7.08341721,3639.8,3639.7,0.9362]
[1753462363692,4.336,3639.8,3639.7,0.9362]
[1753462364333,7.0834037,3639.8,3639.7,0.9362]
[1753462364925,7.336,3639.8,3639.4,0.001]
[1753462365126,10.0834037,3639.8,3639.7,0.4968]
[1753462365328,7.336,3639.8,3639.7,0.4968]
[1753462365534,7.336,3639.8,3639.7,0.9362]
[1753462365898,4.336,3639.8,3639.7,1.6946]
[1753462366119,3.0,3640.3,3639.7,1.6946]
[1753462366336,0.1376,3640.1,3639.8,3.68358823]
[1753462366494,0.1376,3640.1,3639.9,0.9362]
[1753462366924,0.1376,3640.1,3639.7,0.7584]
[1753462366925,2.88477888,3640.1,3640.0,0.9362]
[1753462367121,0.1376,3640.1,3640.0,0.9362]
[1753462367937,2.88477727,3640.1,3640.0,0.4968]
[1753462368655,0.1376,3640.1,3640.0,0.4968]
[1753462368798,3.0,3640.4,3640.0,4.44200434]
[1753462369001,4.4696,3640.5,3640.0,0.7586]
[1753462369225,4.4696,3640.5,3640.1,3.68333376]
[1753462369436,0.002,3641.0,3640.7,2.74671052]
[1753462369613,0.002,3641.0,3640.8,0.9362]
[1753462369812,0.002,3641.0,3640.9,3.64277364]
[1753462370023,0.002,3641.0,3640.9,1.8324]
[1753462370652,0.002,3641.0,3640.9,4.57897364]
[1753462371329,0.002,3641.0,3640.9,1.8324]
[1753462371715,0.002,3641.0,3640.9,5.03687593]
[1753462371915,0.002,3641.0,3640.9,2.29030229]
[1753462372115,0.002,3641.0,3640.9,1.85090229]
[1753462372429,0.002,3641.0,3640.9,1.393]
[1753462372951,0.002,3641.0,3640.9,1.8324]
[1753462374171,0.002,3641.0,3640.9,4.57897364]
[1753462374345,0.002,3641.0,3640.9,1.8324]
[1753462375468,0.002,3641.0,3640.9,1.393]
[1753462375644,0.002,3641.0,3640.9,3.50517364]
[1753462375846,0.002,3641.0,3640.9,4.44137364]
[1753462376050,0.002,3641.0,3640.9,1.2554]
[1753462378984,0.002,3641.0,3640.7,0.1376]
[1753462379179,0.002,3641.0,3640.7,0.9084]
[1753462379531,0.002,3641.0,3640.8,0.4968]
[1753462380144,0.002,3641.0,3640.7,0.1376]
[1753462380494,2.74696756,3640.4,3640.1,1.2507]
[1753462380640,0.4638,3640.4,3639.8,5.0739]
[1753462380983,0.4638,3640.4,3639.8,0.7539]
[1753462381195,0.4638,3640.4,3639.8,1.2507]
[1753462381640,2.7471528,3640.2,3639.8,1.2507]
[1753462382254,2.7470388,3640.3,3639.9,0.4968]
[1753462382481,2.74711025,3640.2,3639.9,0.4968]
[1753462383376,0.4638,3640.4,3639.9,0.4968]
[1753462383570,2.74715131,3640.2,3639.8,0.7539]
[1753462383769,2.74719413,3640.1,3639.8,0.7539]
[1753462384370,2.74725786,3640.0,3639.6,0.001]
[1753462384570,3.21105786,3640.0,3639.6,0.001]
[1753462384765,2.74724772,3640.1,3639.6,0.4978]
[1753462385080,2.74726045,3640.0,3639.6,0.4978]
[1753462385282,2.74719107,3640.1,3639.6,0.4978]
[1753462385652,2.74719107,3640.1,3639.7,0.4394]
[1753462385854,2.74719107,3640.1,3639.8,0.4968]
[1753462386151,2.74719107,3640.1,3639.7,0.4394]
[1753462386372,2.74719107,3640.1,3639.8,0.4669]
[1753462386573,2.74704055,3640.3,3639.9,0.4669]
[1753462386752,4.316,3640.4,3640.0,0.4669]
[1753462386953,2.74725536,3640.0,3639.7,0.4669]
[1753462387149,2.74715393,3640.2,3639.6,0.001]
[1753462387472,2.74717727,3640.1,3639.6,0.4679]
[1753462387683,2.74727102,3640.0,3639.6,0.4679]
[1753462387975,5.53188,3640.4,3639.6,0.4679]
[1753462388176,2.7471018,3640.2,3639.6,0.4679]
[1753462388567,2.74734329,3639.9,3639.6,0.4679]
[1753462388967,2.74728033,3640.0,3639.6,0.4679]
[1753462389696,2.7472073,3640.1,3639.7,0.4669]
[1753462390062,5.09598,3640.4,3639.7,0.4669]
[1753462390394,0.002,3640.4,3640.0,0.1376]
[1753462390604,0.002,3640.4,3640.1,0.4669]
[1753462390762,0.002,3640.4,3640.1,0.9352]
[1753462390965,0.002,3640.4,3640.2,0.4669]
[1753462391368,0.002,3640.4,3640.3,0.4669]
[1753462391567,0.002,3640.4,3640.3,0.6045]
[1753462392410,0.002,3640.4,3640.3,9.16129372]
[1753462392636,0.002,3640.4,3640.3,9.13382346]
[1753462394427,0.002,3641.0,3640.3,8.92622346]
[1753462394602,0.002,3641.0,3640.9,3.50727364]
[1753462394806,0.002,3641.0,3640.9,8.47113298]
[1753462395114,0.002,3641.0,3640.9,9.37886725]
[1753462397231,0.002,3641.9,3641.5,0.8025]
[1753462397438,0.002,3641.9,3641.7,2.74597028]
[1753462397804,0.002,3641.9,3641.7,4.51112998]
[1753462398131,0.002,3641.9,3641.7,5.53803377]
[1753462398826,0.002,3641.9,3641.7,9.37573377]
[1753462399128,0.002,3641.9,3641.7,9.81657407]
[1753462399329,0.002,3641.9,3641.7,5.51057407]
[1753462399630,0.002,3641.9,3641.7,9.84303377]
[1753462399831,0.002,3641.9,3641.7,9.81557407]
[1753462400130,0.002,3641.9,3641.7,1.82940379]
[1753462400317,0.9041,3641.8,3641.7,4.306]
[1753462400516,0.002,3641.8,3641.7,4.306]
[1753462400717,0.002,3641.8,3641.7,8.73937028]
[1753462400895,0.002,3641.8,3641.7,9.89065939]
[1753462402197,0.002,3641.8,3641.7,10.44065939]
[1753462402397,0.002,3641.8,3641.7,10.57825939]
[1753462403531,0.002,3641.8,3641.7,4.78705939]
[1753462403731,0.002,3641.8,3641.7,8.40667028]
[1753462404151,0.002,3641.8,3641.7,8.40767028]
[1753462404327,0.002,3641.8,3641.7,4.10267028]
[1753462404528,0.002,3641.8,3641.7,8.40767028]
[1753462404726,0.002,3641.8,3641.7,8.87597028]
[1753462405027,0.002,3641.8,3641.7,10.03817311]
[1753462407110,0.002,3641.8,3641.7,10.58817311]
[1753462407447,0.002,3641.9,3641.8,6.49869488]
[1753462407647,0.002,3641.9,3641.8,18.602629]
[1753462410351,0.002,3641.9,3641.8,7.43389488]
[1753462410558,0.002,3641.9,3641.8,12.14068657]
[1753462410755,0.002,3641.9,3641.8,7.83768657]
[1753462410923,0.002,3641.9,3641.8,12.14068657]
[1753462411954,0.002,3641.9,3641.8,4.37078657]
[1753462412157,0.002,3641.9,3641.8,8.70124551]
[1753462412356,0.002,3641.9,3641.8,8.67378657]
[1753462414258,0.002,3641.9,3641.8,9.14068657]
[1753462416059,0.002,3641.9,3641.8,12.60898657]
[1753462416259,0.002,3641.9,3641.8,24.32772069]
[1753462417037,0.002,3641.9,3641.8,12.69068657]
[1753462417877,0.002,3641.9,3641.8,7.83768657]
[1753462418061,0.002,3641.9,3641.8,12.14068657]
[1753462418348,0.002,3641.9,3641.8,8.67378657]
[1753462418864,0.002,3641.9,3641.8,9.16328657]
[1753462419065,0.002,3641.9,3641.8,4.37078657]
[1753462419362,0.002,3641.9,3641.8,8.70124551]
[1753462419566,0.002,3641.9,3641.8,8.67378657]
[1753462419868,0.002,3641.9,3641.8,7.92098657]
[1753462420030,0.002,3641.9,3641.7,0.1376]
[1753462420235,0.002,3641.9,3641.8,7.04889488]
[1753462421046,0.002,3641.9,3641.8,4.303]
[1753462421247,0.002,3641.9,3641.8,7.83389488]
[1753462421432,0.002,3641.9,3641.8,5.088]
[1753462421839,0.4301,3641.9,3641.8,4.303]
[1753462422169,0.8844,3641.9,3641.8,4.303]
[1753462422340,0.4301,3641.9,3641.8,7.04889488]
[1753462423042,0.4301,3641.9,3641.8,2.74589488]
[1753462423238,0.4301,3641.9,3641.8,7.04889488]
[1753462423471,0.002,3641.9,3641.8,8.53164242]
[1753462423636,0.002,3641.9,3641.8,9.31664242]
[1753462425585,0.002,3641.9,3641.8,9.78414242]
[1753462426065,0.002,3641.9,3641.8,9.31664242]
[1753462426952,0.002,3641.9,3641.8,8.04114242]
[1753462427160,0.002,3641.9,3641.8,8.53064242]
[1753462427479,0.002,3641.9,3641.8,8.04114242]
[1753462428187,0.002,3641.9,3641.8,8.53064242]
[1753462428850,0.002,3641.9,3641.8,8.99814242]
[1753462430581,0.002,3641.9,3641.8,12.32094242]
[1753462432088,0.002,3641.9,3641.8,4.52944242]
[1753462432258,0.002,3641.9,3641.8,8.83144242]
[1753462432459,0.002,3641.9,3641.8,9.32094242]
[1753462433670,0.002,3641.9,3641.8,9.78844242]
[1753462434286,0.002,3641.9,3641.8,12.78944242]
[1753462435211,0.002,3641.9,3641.8,19.96744859]
[1753462436116,0.002,3641.9,3641.8,19.49994859]
[1753462439014,0.002,3641.9,3641.8,20.51744859]
[1753462439579,0.002,3642.5,3642.4,3.52284256]
[1753462439879,0.002,3642.5,3642.4,18.65614008]
[1753462440077,0.002,3642.5,3642.4,11.58827949]
[1753462440709,0.4301,3642.5,3642.4,10.81087949]
[1753462441413,0.4301,3642.5,3642.4,3.50987949]
[1753462441618,0.8844,3642.5,3642.4,0.1376]
[1753462441814,0.8844,3642.5,3641.8,0.001]
[1753462441815,0.8844,3642.5,3642.3,4.4386]
[1753462442112,0.8824,3642.4,3642.3,4.4386]
[1753462442903,0.002,3642.5,3642.3,4.4386]
[1753462443106,0.002,3642.5,3642.4,2.74544256]
[1753462443303,0.002,3642.5,3642.4,4.301]
[1753462444115,0.8844,3642.5,3642.4,4.301]
[1753462444483,0.4301,3642.5,3642.4,7.04644256]
[1753462444784,0.002,3642.5,3642.4,7.04644256]
[1753462445620,0.002,3642.5,3642.4,8.60716977]
[1753462446314,0.002,3642.5,3642.4,4.30616977]
[1753462446518,0.002,3642.5,3642.4,8.63462419]
[1753462446717,0.002,3642.5,3642.4,8.60716977]
[1753462448687,0.002,3642.5,3642.4,9.01476977]
[1753462449622,0.002,3642.5,3642.4,12.01476977]
[1753462452824,0.002,3642.5,3642.4,12.56476977]
[1753462453125,1e-08,3642.6,3642.5,2.74536719]
[1753462453329,1e-08,3642.6,3642.5,9.7805345]
[1753462453542,1e-08,3642.6,3642.5,9.9181345]
[1753462455626,1e-08,3642.6,3642.5,10.3511345]
[1753462456001,1e-08,3642.6,3642.5,10.77597471]
[1753462456197,1e-08,3642.6,3642.5,6.0521345]
[1753462456406,1e-08,3642.6,3642.5,10.3511345]
[1753462460248,1e-08,3642.6,3642.5,10.3501345]
[1753462461245,1e-08,3642.6,3642.5,5.6191345]
[1753462461461,1e-08,3642.6,3642.5,12.3671345]
[1753462461952,1e-08,3642.6,3642.5,8.6191345]
[1753462462113,1e-08,3642.6,3642.5,12.9171345]
[1753462462311,1e-08,3642.6,3642.5,8.1550345]
[1753462462514,0.47160001,3642.6,3642.5,8.1440345]
[1753462462714,1e-08,3642.6,3642.5,8.1440345]
[1753462462914,1e-08,3642.6,3642.5,8.6081345]
[1753462463523,1e-08,3642.6,3642.5,8.1440345]
[1753462463738,0.47160001,3642.6,3642.5,8.1440345]
[1753462464144,1e-08,3642.6,3642.5,8.1440345]
[1753462464568,1e-08,3642.6,3642.5,8.6081345]
[1753462465623,1e-08,3642.6,3642.5,4.3101345]
[1753462465824,1e-08,3642.6,3642.5,8.17048817]
[1753462466024,1e-08,3642.6,3642.5,8.1430345]
[1753462467119,1e-08,3642.6,3642.5,8.6071345]
[1753462467323,1e-08,3642.6,3642.5,11.6071345]
[1753462475762,0.47160001,3642.6,3642.5,11.1420345]
[1753462476461,0.46600001,3642.6,3642.1,6.59]
[1753462476657,0.93480001,3642.6,3642.2,4.296]
[1753462476967,1e-08,3642.6,3642.5,2.74536719]
[1753462477268,1e-08,3642.6,3642.5,7.04036719]
[1753462477430,0.93480001,3642.6,3642.5,7.04036719]
[1753462478288,0.93480001,3642.6,3642.5,4.295]
[1753462478570,0.93480001,3642.6,3642.5,4.296]
[1753462478986,0.93480001,3642.6,3642.5,7.04136719]
[1753462479145,0.93480001,3642.6,3642.5,4.296]
[1753462479673,0.93480001,3642.6,3642.5,0.001]
[1753462479983,4.94116938,3642.6,3642.5,0.001]
[1753462481754,7.94116938,3642.6,3642.5,0.001]
[1753462483164,8.19781725,3642.6,3642.5,0.001]
[1753462483335,8.35175876,3642.6,3642.5,0.001]
[1753462483536,8.09511089,3642.6,3642.5,0.001]
[1753462484174,8.35135504,3642.6,3642.5,0.001]
[1753462484375,7.94116938,3642.6,3642.5,0.001]
[1753462486274,8.1975451,3642.6,3642.5,0.001]
[1753462486641,8.3351451,3642.6,3642.5,0.001]
[1753462486843,8.07876938,3642.6,3642.5,0.001]
[1753462488682,8.33515017,3642.6,3642.5,0.001]
[1753462490047,5.58985835,3642.6,3642.5,0.001]
[1753462490248,5.5022808,3642.6,3642.5,0.001]
[1753462490474,8.92599183,3642.6,3642.5,0.001]
[1753462490787,9.18210307,3642.6,3642.5,0.001]
[1753462490999,19.90807173,3642.6,3642.5,0.001]
[1753462491595,3.53684409,3642.0,3641.9,0.001]
[1753462491745,11.59669434,3642.0,3641.9,0.001]
[1753462492083,12.78760558,3642.0,3641.9,0.001]
[1753462493466,12.53149434,3642.0,3641.9,0.001]
[1753462493847,12.78732085,3642.0,3641.9,0.001]
[1753462494578,12.53149434,3642.0,3641.9,0.001]
[1753462496080,13.08149434,3642.0,3641.9,0.001]
[1753462500098,8.78749434,3642.0,3641.9,0.001]
[1753462500261,13.08149434,3642.0,3641.9,0.001]
[1753462500602,14.73049434,3642.0,3641.9,0.001]
[1753462501699,14.73049434,3642.0,3641.9,1e-08]
[1753462501902,9.50169434,3642.0,3641.9,1e-08]
[1753462502078,11.59569434,3642.0,3641.9,1e-08]
[1753462502276,12.53049434,3642.0,3641.9,1e-08]
[1753462502478,13.08049434,3642.0,3641.9,1e-08]
[1753462503202,14.72949434,3642.0,3641.9,1e-08]
[1753462503502,4.94534735,3641.2,3641.1,0.001]
[1753462503703,7.4306,3641.2,3641.1,0.001]
[1753462503865,3.0,3641.2,3641.1,0.4597]
[1753462504202,4.293,3642.0,3641.2,0.77]
[1753462504401,0.14348879,3642.7,3641.9,0.1376]
[1753462504706,0.7512,3643.2,3642.5,2.74536719]
[1753462505008,4.293,3643.2,3642.5,3.70206719]
[1753462505205,0.14545639,3643.3,3642.5,4.95715758]
[1753462505610,0.002,3643.3,3642.5,4.95715758]
[1753462506808,0.002,3643.3,3642.5,4.65516719]
[1753462507109,0.002,3643.3,3642.5,4.68262086]
[1753462510995,0.002,3643.3,3642.5,4.65516719]
[1753462511718,0.1396,3643.3,3642.5,8.94616719]
[1753462512520,0.002,3643.3,3642.5,8.94616719]
[1753462513504,0.002,3643.3,3642.5,4.65516719]
[1753462513742,0.4673,3643.2,3642.5,8.48746719]
[1753462514138,0.7656,3643.3,3642.5,10.07376413]
[1753462514912,2.74504873,3643.0,3642.5,4.922]
[1753462515239,2.74504873,3643.0,3642.1,4.02253289]
[1753462515240,0.4673,3642.9,3642.4,4.4276]